Cogmind - Beta 15 @@@ ROGUE MODE // 2025.05.05 @ 21:54:14 Player: jumpy Result: Destroyed by 1T-U5N(R) with Subdweller Machine Gun Performance ------------- Evolutions (0) 0 Regions Visited (2) 400 Robots Destroyed (17) 85 Value Destroyed (300) 300 Prototype IDs (0) 0 Alien Tech Used (0) 0 Bonus (0) 0 TOTAL SCORE: 785 Bonus ------- None Cogmind --------- Core Integrity 0/250 Matter 275/300 Energy 63/100 System Corruption 0% Temperature Cool (0) Movement Rolling (100) Location -10/Subcaves Parts ------- > --- POWER (1) -------- (None) > --- PROPULSION (2) --- Compact Wheel Compact Wheel > --- UTILITY (2) ------ Large Storage Unit > --- WEAPON (2) ------- Subdweller Laser > --- INVENTORY (15) --- Improved Terrain Scanner Seismic Detector Scrap Shield Fragment (48) Scrap Shield Fragment (46) Scrap Shield Fragment (46) Scrap Shield Fragment (42) Peak State ------------ > --- POWER ------------ Light Ion Engine > --- PROPULSION ------- Light Treads Light Treads > --- UTILITY ---------- Large Storage Unit Seismic Detector > --- WEAPON ----------- Small Laser Subdweller Laser > --- INVENTORY -------- Compact Wheel Compact Wheel Improved Terrain Scanner Seismic Detector Small Laser Scrap Shield Fragment Scrap Shield Fragment Scrap Shield Fragment [Rating: 9] Favorites ----------- Power Ion Engine Engine Ion Engine Propulsion Light Treads Treads Light Treads Wheel Compact Wheel Utility Seismic Detector Device Seismic Detector Storage Large Storage Unit Weapon Small Laser Energy Gun Small Laser Build | -11 -10 -10 ------- Run | Yrd Mat Sub Slots Evolved . | . . . Power . | . . . Propulsion . | . . . Utility . | . . . Weapon . | . . . Parts Attached 13 | 7 1 5 Power 2 | 1 . 1 Engine 2 | 1 . 1 Core . | . . . Reactor . | . . . Propulsion 4 | 2 . 2 Treads 2 | 2 . . Leg . | . . . Wheel 2 | . . 2 Hover . | . . . Flight . | . . . Utility 3 | 2 1 . Device 1 | 1 . . Storage 2 | 1 1 . Processor . | . . . Hackware . | . . . Protection . | . . . Artifact . | . . . Weapon 4 | 2 . 2 Energy Gun 4 | 2 . 2 Energy Cannon . | . . . Ballistic Gun . | . . . Ballistic Cannon . | . . . Launcher . | . . . Special Weapon . | . . . Impact Weapon . | . . . Slashing Weapon . | . . . Piercing Weapon . | . . . Special Melee Weapon . | . . . Unidentified Prototypes . | . . . Parts Lost 7 | . . 7 Power 2 | . . 2 Propulsion 2 | . . 2 Utility 1 | . . 1 Weapon 2 | . . 2 Highest Loss Streak 4 | . . 4 To Critical Strikes . | . . . Average Backups 4 | 3 5 4 Power . | . 1 . Propulsion 1 | 1 2 1 Utility 1 | . 2 2 Weapon . | . . . Tool/Special . | . . . Unused Backups 2 | . . 2 Power . | . . . Propulsion . | . . . Utility 2 | . . 2 Weapon . | . . . Tool/Special . | . . . Average Slot Usage (%) 94 | . 100 93 Engine 13 | . 14 13 Treads 25 | . 28 24 Wheel 1 | . . 1 Device 13 | . 14 12 Storage 14 | . 14 14 Energy Gun 26 | . 28 25 Peak Build Rating 9 | 7 7 9 Average Rating 6 | 5 7 7 On Entrance 4 | . 7 7 Naked Turns . | . . . Heaviest Build 29 | 13 28 29 Greatest Support 40 | 40 40 40 Greatest Overweight (x) 1 | . . 1 Average Overweight (x) . | . . . Largest Inventory Capacity 15 | 8 15 15 Average Capacity 13 | 7 12 15 Most Carried 8 | 5 6 8 Average Carried 5 | 3 5 6 Final Capacity 15 | 8 15 15 Final Carried 6 | 5 5 6 Class Distribution -------------------- 100% | Mutant Dominant Class ---------------- Mutant | -10/Materials Mutant | -10/Subcaves Resources | -11 -10 -10 ----------- Run | Yrd Mat Sub Matter Collected 300 | 270 10 20 Remotely . | . . . Salvage Created 463 | 200 145 118 Parts 35 | 19 8 8 Haulers Intercepted . | . . . Recyclers Shooed . | . . . Parts Field Recycled . | . . . Retrieved Matter . | . . . Parts Self-Destructed 10 | . . 10 Prevented . | . . . Kills | -11 -10 -10 ------- Run | Yrd Mat Sub Combat Hostiles Destroyed 6 | . 3 3 Guns 6 | . 3 3 Classes Destroyed 8 | 3 2 3 Worker 1 | 1 . . Tunneler 6 | 6 . . Recycler 1 | 1 . . Turret 2 | . . 2 Watcher 1 | . 1 . Swarmer 2 | . . 2 Grunt 3 | . 3 . Subdweller 1 | . . 1 Best Kill Streak 3 | 3 1 2 Combat Bots Only 2 | . 1 2 Max Kills in Single Turn 1 | 1 1 1 Gunslinging . | . . . Exploded . | . . . Melee . | . . . Uniques/NPCs Destroyed . | . . . Combat | -11 -10 -10 -------- Run | Yrd Mat Sub Hostile Shots Fired 124 | . 10 114 Missed 49 | . 3 46 Hits 75 | . 7 68 Projectile 75 | . 7 68 Critical Strikes 3 | . 1 2 Damage Taken 925 | . 98 827 Core 262 | . 13 249 Absorbed by Shields . | . . . Core Remaining (%) 100 | 100 . . Volleys Fired 94 | 29 10 55 Largest 2 | 2 2 2 Hottest 100 | 80 80 100 Shots Fired 163 | 58 20 85 Gun 163 | 58 20 85 Cannon . | . . . Launcher . | . . . Special . | . . . Kinetic . | . . . Thermal 163 | 58 20 85 Explosive . | . . . Electromagnetic . | . . . Robot Hit Streak 12 | 9 12 9 Robot Miss Streak 5 | 5 1 2 Penetration Max . | . . . Secondary Targets . | . . . Shots Hit Robots 89 | 35 16 38 Core Hits 30 | 9 8 13 Critical Kills . | . . . Critical Parts Destroyed . | . . . Critical Strikes . | . . . Melee Attacks . | . . . Impact . | . . . Slashing . | . . . Piercing . | . . . Sneak Attacks . | . . . Combat Hostiles . | . . . Follow-up Attacks . | . . . Damage Inflicted 1061 | 377 181 503 Guns 1059 | 377 179 503 Cannons . | . . . Explosions . | . . . Melee . | . . . Ramming 2 | . 2 . Kinetic . | . . . Thermal 1059 | 377 179 503 Explosive . | . . . Electromagnetic . | . . . Impact . | . . . Slashing . | . . . Piercing . | . . . Highest Corruption . | . . . Average Corruption . | . . . Corruption Purged . | . . . Corruption Blocked . | . . . Overload Shots . | . . . Overflow Damage . | . . . Projectiles . | . . . Explosions . | . . . Melee . | . . . Knockbacks . | . . . Impact . | . . . Kinetic . | . . . Secondary . | . . . Self-Inflicted Damage . | . . . Shots . | . . . Rammed 1 | . 1 . Targets Rammed 1 | . 1 . Kicked . | . . . Crushed . | . . . Highest Temperature 108 | 108 108 12 Average Temperature 32 | 33 37 5 Received Heat Transfer 333 | . 75 258 Siege Activations . | . . . Martial Activations . | . . . Shielding Activations . | . . . Robots Disrupted . | . . . Combat Hostiles . | . . . Robots Corrupted . | . . . Combat Hostiles . | . . . Parts Fried . | . . . Impact Corruptions . | . . . Robots Melted . | . . . Combat Hostiles . | . . . Parts Melted 3 | 3 . . Heat Transferred 2250 | 875 400 975 Parts Sabotaged . | . . . Parts Stolen . | . . . Parts Stripped . | . . . Power Chain Reactions . | . . . Alert | -11 -10 -10 ------- Run | Yrd Mat Sub Maximum Alert Level . | . . . Low Security (%) 100 | 100 100 . Level 1 . | . . . Level 2 . | . . . Level 3 . | . . . Level 4 . | . . . Level 5 . | . . . High Security . | . . . Max Security . | . . . Peak Influence 40 | 10 40 . Initial . | . . . Average 2 | 1 3 . Influence Increases 302 | 40 77 185 Destroy 0b10 Robot/C 140 | . 60 80 Destroy 0b10 Robot/NC 45 | 40 5 . Destroy Leader 12 | . 12 . Lose Combat Pursuer 105 | . . 105 Influence Decreases 302 | 40 37 225 Entered New Map 20 | . . 20 Time Decay 272 | 40 37 195 Lost Part 10 | . . 10 Squads Dispatched 1 | . 1 . Investigation . | . . . Extermination . | . . . Reinforcement 1 | . 1 . Assault . | . . . Garrison . | . . . Intercept . | . . . Searches Triggered . | . . . Construction Impeded . | . . . Haulers Reinforced . | . . . Active Scanning Responses . | . . . Cargo Convoy Interrupts . | . . . Stealth | -11 -10 -10 --------- Run | Yrd Mat Sub Distress Signals 1 | . 1 . Communications Jammed . | . . . Distress Signals . | . . . Times Spotted 20 | . 10 10 Peak Tracking Total 5 | . 5 3 Tactical Retreats 4 | . . 4 Traps | -11 -10 -10 ------- Run | Yrd Mat Sub Traps Triggered . | . . . Indirectly . | . . . Trap Hack Attempts . | . . . Triggered . | . . . Disarmed . | . . . Reprogrammed . | . . . Reused . | . . . Traps Extracted . | . . . Installed . | . . . Triggered . | . . . Machines | -11 -10 -10 ---------- Run | Yrd Mat Sub Machines Disabled . | . . . Max in Single Turn . | . . . Machines Repaired . | . . . Machines Dismantled . | . . . Machines Sabotaged . | . . . Overloaded Fab Kills . | . . . Hacking | -11 -10 -10 --------- Run | Yrd Mat Sub Machines Accessed 1 | . 1 . Terminals 1 | . 1 . Fabricators . | . . . Repair Stations . | . . . Recycling Units . | . . . Scanalyzers . | . . . Garrison Access . | . . . Total Hacks 2 | . 2 . Successful . | . . . Failed 2 | . 2 . Catastrophic . | . . . Database Lockouts . | . . . Manual 2 | . 2 . Terminals 2 | . 2 . Fabricators . | . . . Repair Stations . | . . . Recycling Units . | . . . Scanalyzers . | . . . Garrison Access . | . . . Terminal Hacks . | . . . Fabricator Hacks . | . . . Repair Station Hacks . | . . . Recycling Unit Hacks . | . . . Scanalyzer . | . . . Garrison Access Hacks . | . . . Unauthorized Hacks . | . . . Terminals . | . . . Fabricators . | . . . Repair Stations . | . . . Recycling Units . | . . . Scanalyzers . | . . . Garrison Access . | . . . Data Cores Recovered . | . . . Used . | . . . Hacking Detections 1 | . 1 . Full Trace Events . | . . . Feedback Events . | . . . Feedback Blocked . | . . . Robot Schematics Acquired . | . . . Robots Built . | . . . Authchips . | . . . Time . | . . . Total Robot Build Rating . | . . . Part Schematics Acquired . | . . . Parts Built . | . . . Authchips . | . . . Time . | . . . Total Part Build Rating . | . . . Parts Repaired . | . . . Time . | . . . Parts Recycled . | . . . Recycled Matter . | . . . Retrieved Matter . | . . . Retrieved Components . | . . . Parts Scanalyzed . | . . . Part Schematics Acquired . | . . . Parts Damaged . | . . . Bothacking | -11 -10 -10 ------------ Run | Yrd Mat Sub Used RIF Installer . | . . . Robots Hacked . | . . . Non-combat . | . . . Combat . | . . . Robot Hacks Applied . | . . . Relay Couplers Released . | . . . Fabnet Peak Effective % . | . . . Robots Rewired . | . . . Allies Hacked . | . . . Hacks Repelled . | . . . Allies | -11 -10 -10 -------- Run | Yrd Mat Sub Total Allies . | . . . Largest Group . | . . . Highest-Rated Group . | . . . Highest-Rated Ally . | . . . Total Orders . | . . . Ally Attacks . | . . . Total Damage . | . . . Kills . | . . . Allies Corrupted . | . . . Allies Melted . | . . . Intel | -11 -10 -10 ------- Run | Yrd Mat Sub Active Infowar (turns) 1337 | 98 317 922 Seismic 1337 | 98 317 922 Robot Analysis Total . | . . . Derelict Logs Recovered . | . . . Drone Launches . | . . . Drone Recoveries . | . . . Exploration | -11 -10 -10 ------------- Run | Yrd Mat Sub Turns Passed 1693 | 366 317 1010 Spaces Moved 887 | 168 178 541 Core 4 | 4 . . Treads 831 | 164 178 489 Legs . | . . . Wheels 52 | . . 52 Hover . | . . . Flight . | . . . Fastest Speed 50 | 50 160 100 Average Speed 158 | 157 160 158 Slowest Speed 240 | 160 160 240 Overloaded Moves . | . . . Propulsion Burnouts . | . . . Robots Hopped . | . . . Potential Cave-ins . | . . . Cave-ins Triggered . | . . . Exploration Rate (%) 20 | 8 30 24 Regions Visited 2 Branch Regions 1 Pre-discovered Areas . | . . . Known Exits Taken . | . . . Unknown Exits Taken 2 | 1 1 . Scrap Searched . | . . . Spaces Dug . | . . . Terrain Destroyed . | . . . Melee . | . . . Projectile . | . . . AOE . | . . . Terrain Rammed . | . . . Walls Destroyed . | . . . Machines Disabled . | . . . Actions | -11 -10 -10 --------- Run | Yrd Mat Sub Total 1006 | 208 190 608 Wait 2 | . . 2 Move 885 | 167 177 541 Hop . | . . . Pick Up 9 | 5 . 4 Fast Attach 8 | 7 . 1 Attach 3 | . . 3 Detach . | . . . Swap 2 | . 1 1 Drop 2 | . 1 1 Fire 94 | 29 10 55 Melee . | . . . Ram . | . . . Kick . | . . . Crush 1 | . 1 . Escape Stasis . | . . . Rewire . | . . . Trap . | . . . Miscellaneous . | . . . Route ------- -11/Scrapyard -10/Materials (discovered 2 exits: [*Mat] / [*Sub]) -10/Subcaves (discovered 3 exits: [*Mat] / [*Rec] / [Scr]) History --------- Turn | Location | Event 34 | -11/Scrapyard | Discovered new exit (range 15) 367 | -11/Scrapyard | Entered Materials 368 | -10/Materials | Build established: Mutant 368 | -10/Materials | Met a group of wandering Federalists 490 | -10/Materials | Lost 4 allies 494 | -10/Materials | Discovered new exit (range 12) 662 | -10/Materials | Discovered new exit (range 6) 684 | -10/Materials | Entered Subcaves 685 | -10/Subcaves | Continued accompanying wandering Federalists (1) 685 | -10/Subcaves | Approached by a straggling Scientist 1030 | -10/Subcaves | Discovered new exit (range 14) 1507 | -10/Subcaves | Discovered new exit (range 13) 1619 | -10/Subcaves | Core integrity fell below 50% 1648 | -10/Subcaves | Core integrity fell below 20% 1655 | -10/Subcaves | Lost 4 parts (1p1n1u1w) 1694 | -10/Subcaves | Destroyed by 1T-U5N(R) with Subdweller Machine Gun Last Messages --------------- 01438_ DN-8DU(u) tweaks Twisted Machinery. 01443_ DN-8DU(u) builds Twisted Machinery. 01448_ DN-8DU(u) tweaks Twisted Machinery. IO-9NH(c): "I think it's somewhere northeast of here" 01483_ AW-Y6V(u) builds Twisted Machinery. 01507_ EXIT=FOUND 01515_ Sub. Laser destroyed. 01519_ Lgt. Treads destroyed. 01525_ 7D-YLL(R) destroyed. 01529_ Subatomizers dissect the Sub. Optics. 01532_ Acquired Scrap Shield Fragment. 01544_ Subatomizers dissect the Sub. Optics. 01606_ Seismic Detector destroyed. 01616_ Lgt. Treads destroyed. 01620_ Sml. Laser destroyed. 01624_ Lgt. Ion Engine destroyed. 01629_ Subatomizers dissect the Sub. Laser. 01636_ Acquired Sub. Laser. 01638_ 1T-U5N(R) affixes Scrap Shield Fragment to Scrap Shield. 01685_ DN-8DU(u) tweaks Twisted Machinery. Map ----- +----------------------------------------------------+ | ?????????????????????# #?????????????????????????? | | ?????????????????????#"##????????????????????????? | | ????????????????????## "#??##????????????????????? | | ????????????????#???#" ### #????????????????????? | | ????????????????#"??## ### #????????????????????? | | ????????????????#""?#" ## ####?????????????????? | | ????????????????# "##" # # #"##????????????????? | | ????????????????# ""# """##???????????????? | | ????????????????# "#&& ## " #???????????????? | | ????????????????# " % #### ##???????????????? | | ????????????????## # ## #??## #????????????????? | | ?????????????????##### #??#""#????????????????? | | ????????????????????## ## """""" ????????????????? | | ????????????????????# "#""## #???????????????? | | ????????????????????#" ##### #???????????????? | | ????????????????????## ##??# ???????????????? | | ?????????????????????# ##?## ???????????????? | | ?????????????????????# #??#"" ##??????????????? | | ?????????????????????## #" # " #???????????????? | | ?????????????????????## " " ###?????????????? | | ?????????????????????# ## """"""" #?????????????? | | ?????????????????????# ## "##"#? #?????????????? | | ?????????????????????# ###"""### #??????????????? | | ????????????????????## ## """""" #??????????????? | | ???????????????????## ## """""""#??????????????? | | ???????????????????# @ R #???????????????? | | ???????????????????# " #???????????????? | | ????????????" ## # ##""" #???????????????? | | ???????????## ""?#####"""""#???????????????? | | ????????????# ###"""????# """##???????????????? | | ????????????###???##""????# "##????????????????? | | ?????????????????####"????# ##?????????????????? | | ????????????????## ??????## #????########?????? | | ????????????????# ???????# ####### ## ###??## | | ????????????????# ######## ### #### | | ????????????????# ## # # ## | | ????????????# ??# ## | | ?????????????# ?## ## ## | | ????????????## ## ## ### | | ????????????# #### #### ## # | | ????????????# #??## ##??## ####### | | ????????????# ##???####????# ##?????? | | ????????????### #######??????# ###??????? | | ??????????????# ##?????# #????????# | | ??????????????# #?????# ??????? | | ?????????????# ##### ##?????## ?????# | | ???????????# #????## ########??# #???# | | ???????????# #??##??## ### #??## #??# | | ???????????# ??## ## #???### ### # | | ???????????# ???# #???##### ## | +----------------------------------------------------+ Best States ------------- Heat Dissipation 25 Energy Generation 10 Energy Capacity 250 Matter Stores 300 Matter Capacity 300 Sight Range 16 Terrain Scan Density 10 Evasion (%) 40 Recoil Reduction 2 Item Schematics ----------------- None Robot Schematics ------------------ None Fabricated ------------ Nothing Repaired ---------- Nothing Alien Tech Used ----------------- None Achievements -------------- None Challenges ------------ None Game ------ Seed DeepWeightRail Manual? 0 Play Time 00:12:24 Cumulative 78.0 hours Start 2025.05.05 @ 21:33:01 End 2025.05.05 @ 21:54:14 Sessions 1 Manual Loads 0 Difficulty Rogue Special Mode None Game No. 200 Rogue 200 Adventurer 0 Explorer 0 Win Type - Total 1 Types 1/0/0/0/0/0/0/0/0/0 Lore% 34 Gallery% 43 Achievement% 35 Wizard Run 0 Options --------- Layout 0 ASCII 0 Keyboard 0 Movement Numpad Keybinds 0 Fullscreen 2 Font 18/Terminus Map View 76x50 Zoom Use 0% Tactical HUD 1 Map Filters NONE Filters NONE Steam 1 RUN: 6aaf7468-db3f-4d0a-850a-d91aa2c9fdfb